[Event "January 2 Early 2024"]
[Site "https://www.chess.com"]
[Date "2024.01.02"]
[Round "3"]
[White "Mekhitarian, Krikor Sevag"]
[Black "Aggelis, Nikolaos"]
[Result "1-0"]
[Board "61"]
[TimeControl "180+1"]
[WhiteFideId "2107660"]
[BlackFideId "4213220"]
[WhiteElo "2859"]
[BlackElo "2585"]
[WhiteTeam "BRA"]
[BlackTeam "GRE"]
[WhiteClock "0:00:11"]
[BlackClock "0:00:00"]

1. Nf3 {[%clk 0:03:00]}  b6 {[%clk 0:02:51]} 2. c4 {[%clk 0:02:57]}  Bb7 {[%clk 0:02:51]} 3. Nc3 {[%clk 0:02:57]}  Nf6 {[%clk 0:02:51]} 4. d4 {[%clk 0:02:55]}  d5 {[%clk 0:02:51]} 5. cxd5 {[%clk 0:02:47]}  Nxd5 {[%clk 0:02:51]} 6. Qc2 {[%clk 0:02:47]}  g6 {[%clk 0:02:47]} 7. e4 {[%clk 0:02:45]}  Nxc3 {[%clk 0:02:47]} 8. bxc3 {[%clk 0:02:46]}  Bg7 {[%clk 0:02:47]} 9. Bb5+ {[%clk 0:02:43]}  c6 {[%clk 0:02:46]} 10. Bd3 {[%clk 0:02:43]}  O-O {[%clk 0:02:47]} 11. h4 {[%clk 0:02:30]}  c5 {[%clk 0:02:41]} 12. d5 {[%clk 0:02:30]}  Nd7 {[%clk 0:02:21]} 13. h5 {[%clk 0:02:28]}  c4 {[%clk 0:02:21]} 14. Be2 {[%clk 0:02:24]}  Nc5 {[%clk 0:02:13]} 15. hxg6 {[%clk 0:02:23]}  hxg6 {[%clk 0:02:06]} 16. Be3 {[%clk 0:02:17]}  Qd6 {[%clk 0:01:53]} 17. Rd1 {[%clk 0:02:07]}  Rad8 {[%clk 0:01:49]} 18. Bd4 {[%clk 0:02:00]}  e5 {[%clk 0:01:16]} 19. dxe6 {[%clk 0:01:22]}  Qxe6 {[%clk 0:01:00]} 20. Qc1 {[%clk 0:01:22]}  Qxe4 {[%clk 0:00:43]} 21. Kf1 {[%clk 0:00:51]}  Nd3 {[%clk 0:00:32]} 22. Bxd3 {[%clk 0:00:44]}  cxd3 {[%clk 0:00:33]} 23. Re1 {[%clk 0:00:44]}  d2 {[%clk 0:00:16]} 24. Qxd2 {[%clk 0:00:43]}  Qg4 {[%clk 0:00:15]} 25. Bxg7 {[%clk 0:00:29]}  Rxd2 {[%clk 0:00:13]} 26. Bf6 {[%clk 0:00:29]}  Ba6+ {[%clk 0:00:03]} 27. Kg1 {[%clk 0:00:27]}  Qh5 {[%clk 0:00:03]} 28. Rxh5 {[%clk 0:00:26]}  gxh5 {[%clk 0:00:04]} 29. Nxd2 {[%clk 0:00:27]}  Rc8 {[%clk 0:00:03]} 30. Nf3 {[%clk 0:00:21]}  Kh7 {[%clk 0:00:04]} 31. Bd4 {[%clk 0:00:21]}  Kg6 {[%clk 0:00:05]} 32. Re5 {[%clk 0:00:21]}  f6 {[%clk 0:00:04]} 33. Re6 {[%clk 0:00:22]}  Bc4 {[%clk 0:00:04]} 34. Rxf6+ {[%clk 0:00:22]}  Kh7 {[%clk 0:00:05]} 35. Ng5+ {[%clk 0:00:22]}  Kg8 {[%clk 0:00:05]} 36. Rh6 {[%clk 0:00:22]}  Kf8 {[%clk 0:00:05]} 37. Rh8+ {[%clk 0:00:20]}  Bg8 {[%clk 0:00:06]} 38. Rxh5 {[%clk 0:00:21]}  Bxa2 {[%clk 0:00:05]} 39. Rh8+ {[%clk 0:00:20]}  Bg8 {[%clk 0:00:05]} 40. Rh6 {[%clk 0:00:21]}  Re8 {[%clk 0:00:03]} 41. f4 {[%clk 0:00:19]}  Re2 {[%clk 0:00:03]} 42. g4 {[%clk 0:00:17]}  a5 {[%clk 0:00:04]} 43. Rxb6 {[%clk 0:00:17]}  a4 {[%clk 0:00:04]} 44. Ra6 {[%clk 0:00:17]}  Bb3 {[%clk 0:00:04]} 45. f5 {[%clk 0:00:17]}  Bd5 {[%clk 0:00:03]} 46. Rxa4 {[%clk 0:00:15]}  Rg2+ {[%clk 0:00:03]} 47. Kf1 {[%clk 0:00:16]}  Ke8 {[%clk 0:00:02]} 48. Be5 {[%clk 0:00:12]}  Rc2 {[%clk 0:00:02]} 49. Ne6 {[%clk 0:00:11]}  Kf7 {[%clk 0:00:00]} 50. Nf4 {[%clk 0:00:11]} 1-0

[Event "January 2 Early 2024"]
[Site "https://www.chess.com"]
[Date "2024.01.02"]
[Round "3"]
[White "Pakleza, Zbigniew"]
[Black "Parfenov, Viktor N."]
[Result "1-0"]
[Board "62"]
[TimeControl "180+1"]
[WhiteFideId "1119290"]
[BlackFideId "4165969"]
[WhiteElo "2818"]
[BlackElo "2551"]
[WhiteTeam "POL"]
[BlackTeam "RUS"]
[WhiteClock "0:00:21"]
[BlackClock "0:00:09"]

1. d4 {[%clk 0:03:00]}  d5 {[%clk 0:02:41]} 2. Bf4 {[%clk 0:03:00]}  Nf6 {[%clk 0:02:38]} 3. e3 {[%clk 0:03:00]}  e6 {[%clk 0:02:37]} 4. Nd2 {[%clk 0:03:00]}  c5 {[%clk 0:02:38]} 5. c3 {[%clk 0:03:00]}  Nc6 {[%clk 0:02:38]} 6. Ngf3 {[%clk 0:03:00]}  cxd4 {[%clk 0:02:38]} 7. cxd4 {[%clk 0:02:59]}  Bd6 {[%clk 0:02:36]} 8. Bg3 {[%clk 0:02:59]}  O-O {[%clk 0:02:35]} 9. Bd3 {[%clk 0:02:58]}  b6 {[%clk 0:02:31]} 10. O-O {[%clk 0:02:57]}  Bxg3 {[%clk 0:02:30]} 11. hxg3 {[%clk 0:02:58]}  Bb7 {[%clk 0:02:30]} 12. Qa4 {[%clk 0:02:58]}  a6 {[%clk 0:02:11]} 13. Rfc1 {[%clk 0:02:58]}  Qd6 {[%clk 0:02:08]} 14. a3 {[%clk 0:02:53]}  Rfc8 {[%clk 0:02:05]} 15. Rc3 {[%clk 0:02:40]}  b5 {[%clk 0:01:58]} 16. Qc2 {[%clk 0:02:35]}  b4 {[%clk 0:01:56]} 17. Rc5 {[%clk 0:02:36]}  Nd7 {[%clk 0:01:55]} 18. Bxh7+ {[%clk 0:02:30]}  Kf8 {[%clk 0:01:48]} 19. Nb3 {[%clk 0:02:28]}  Nxc5 {[%clk 0:01:35]} 20. Nxc5 {[%clk 0:02:27]}  Rab8 {[%clk 0:01:28]} 21. Bd3 {[%clk 0:02:21]}  Kg8 {[%clk 0:00:45]} 22. Nxb7 {[%clk 0:01:28]}  Rxb7 {[%clk 0:00:43]} 23. Bxa6 {[%clk 0:01:28]}  Ne7 {[%clk 0:00:36]} 24. Qe2 {[%clk 0:01:20]}  bxa3 {[%clk 0:00:27]} 25. Bxb7 {[%clk 0:00:51]}  axb2 {[%clk 0:00:27]} 26. Qxb2 {[%clk 0:00:51]}  Rb8 {[%clk 0:00:21]} 27. Ra8 {[%clk 0:00:40]}  Rxa8 {[%clk 0:00:18]} 28. Bxa8 {[%clk 0:00:41]}  Qa6 {[%clk 0:00:15]} 29. Qb8+ {[%clk 0:00:27]}  Kh7 {[%clk 0:00:09]} 30. Qe8 {[%clk 0:00:21]} 1-0

[Event "January 2 Early 2024"]
[Site "https://www.chess.com"]
[Date "2024.01.02"]
[Round "3"]
[White "Baches Garcia, Guillermo"]
[Black "Vakhlamov, Igor L."]
[Result "0-1"]
[Board "63"]
[TimeControl "180+1"]
[WhiteFideId "2209764"]
[BlackFideId "24126748"]
[WhiteElo "2543"]
[BlackElo "2804"]
[WhiteTeam "ESP"]
[BlackTeam "RUS"]
[WhiteClock "0:00:00"]
[BlackClock "0:01:06"]

1. d4 {[%clk 0:03:00]}  d5 {[%clk 0:02:59]} 2. Nf3 {[%clk 0:03:01]}  Nf6 {[%clk 0:02:58]} 3. Bg5 {[%clk 0:03:01]}  Ne4 {[%clk 0:02:57]} 4. Bf4 {[%clk 0:03:02]}  Bf5 {[%clk 0:02:58]} 5. Nbd2 {[%clk 0:03:02]}  e6 {[%clk 0:02:58]} 6. e3 {[%clk 0:03:01]}  Bd6 {[%clk 0:02:57]} 7. Nxe4 {[%clk 0:03:00]}  Bxe4 {[%clk 0:02:57]} 8. Bd3 {[%clk 0:02:57]}  Bxf4 {[%clk 0:02:41]} 9. exf4 {[%clk 0:02:58]}  Bxf3 {[%clk 0:02:41]} 10. Qxf3 {[%clk 0:02:55]}  g6 {[%clk 0:02:41]} 11. h4 {[%clk 0:02:46]}  h5 {[%clk 0:02:39]} 12. g4 {[%clk 0:02:46]}  hxg4 {[%clk 0:02:40]} 13. Qxg4 {[%clk 0:02:47]}  Qf6 {[%clk 0:02:39]} 14. O-O-O {[%clk 0:02:38]}  Nd7 {[%clk 0:02:36]} 15. c3 {[%clk 0:02:10]}  O-O-O {[%clk 0:02:34]} 16. Rh3 {[%clk 0:02:04]}  Rh5 {[%clk 0:02:29]} 17. Rdh1 {[%clk 0:02:02]}  Rdh8 {[%clk 0:02:25]} 18. Kb1 {[%clk 0:01:55]}  a6 {[%clk 0:02:24]} 19. a3 {[%clk 0:01:55]}  Kb8 {[%clk 0:02:23]} 20. Ka1 {[%clk 0:01:54]}  Ka8 {[%clk 0:02:18]} 21. Qg3 {[%clk 0:01:51]}  c5 {[%clk 0:02:17]} 22. dxc5 {[%clk 0:01:46]}  Nxc5 {[%clk 0:02:18]} 23. Bc2 {[%clk 0:01:45]}  Qe7 {[%clk 0:02:08]} 24. Bd1 {[%clk 0:01:21]}  Ne4 {[%clk 0:02:07]} 25. Qe3 {[%clk 0:01:20]}  R5h6 {[%clk 0:02:06]} 26. h5 {[%clk 0:01:19]}  gxh5 {[%clk 0:01:55]} 27. f5 {[%clk 0:01:07]}  h4 {[%clk 0:01:50]} 28. fxe6 {[%clk 0:01:01]}  fxe6 {[%clk 0:01:51]} 29. Bg4 {[%clk 0:00:53]}  e5 {[%clk 0:01:46]} 30. c4 {[%clk 0:00:49]}  Nf6 {[%clk 0:01:45]} 31. Be2 {[%clk 0:00:43]}  d4 {[%clk 0:01:43]} 32. Qg5 {[%clk 0:00:40]}  Nd5 {[%clk 0:01:30]} 33. Qxe7 {[%clk 0:00:31]}  Nxe7 {[%clk 0:01:31]} 34. Bf3 {[%clk 0:00:31]}  Ng6 {[%clk 0:01:27]} 35. Rg1 {[%clk 0:00:29]}  Nf4 {[%clk 0:01:27]} 36. Rh2 {[%clk 0:00:28]}  R6h7 {[%clk 0:01:21]} 37. Rg5 {[%clk 0:00:27]}  Re7 {[%clk 0:01:19]} 38. Be4 {[%clk 0:00:27]}  h3 {[%clk 0:01:17]} 39. f3 {[%clk 0:00:26]}  d3 {[%clk 0:01:14]} 40. Kb1 {[%clk 0:00:26]}  Ka7 {[%clk 0:01:09]} 41. Kc1 {[%clk 0:00:26]}  Rc8 {[%clk 0:01:06]} 42. b3 {[%clk 0:00:00]}  b5 {[%clk 0:01:06]} 0-1

[Event "January 2 Early 2024"]
[Site "https://www.chess.com"]
[Date "2024.01.02"]
[Round "3"]
[White "Petukhov, Dmitry"]
[Black "Bindrich, Falko"]
[Result "1/2-1/2"]
[Board "65"]
[TimeControl "180+1"]
[WhiteFideId "4142748"]
[BlackFideId "4676670"]
[WhiteElo "2515"]
[BlackElo "2770"]
[WhiteTeam "RUS"]
[BlackTeam "GER"]
[WhiteClock "0:00:27"]
[BlackClock "0:00:14"]

1. e4 {[%clk 0:02:59]}  e5 {[%clk 0:02:59]} 2. Nf3 {[%clk 0:02:58]}  Nc6 {[%clk 0:03:00]} 3. Bb5 {[%clk 0:02:58]}  Nf6 {[%clk 0:03:00]} 4. O-O {[%clk 0:02:57]}  Nxe4 {[%clk 0:03:00]} 5. d4 {[%clk 0:02:56]}  Nd6 {[%clk 0:03:00]} 6. Bxc6 {[%clk 0:02:55]}  dxc6 {[%clk 0:03:01]} 7. dxe5 {[%clk 0:02:56]}  Nf5 {[%clk 0:03:02]} 8. Qxd8+ {[%clk 0:02:56]}  Kxd8 {[%clk 0:03:02]} 9. Nc3 {[%clk 0:02:57]}  h6 {[%clk 0:03:02]} 10. Ne2 {[%clk 0:02:57]}  b6 {[%clk 0:03:02]} 11. Nf4 {[%clk 0:02:57]}  Bd7 {[%clk 0:03:01]} 12. Nh5 {[%clk 0:02:56]}  Kc8 {[%clk 0:02:59]} 13. h3 {[%clk 0:02:56]}  Kb7 {[%clk 0:02:59]} 14. g4 {[%clk 0:02:56]}  Ne7 {[%clk 0:02:58]} 15. b3 {[%clk 0:02:49]}  Ng6 {[%clk 0:02:58]} 16. Bb2 {[%clk 0:02:48]}  c5 {[%clk 0:02:58]} 17. c4 {[%clk 0:02:48]}  a5 {[%clk 0:02:57]} 18. Kg2 {[%clk 0:02:45]}  a4 {[%clk 0:02:55]} 19. Kg3 {[%clk 0:02:45]}  Rg8 {[%clk 0:02:54]} 20. Nh4 {[%clk 0:02:27]}  Nxh4 {[%clk 0:02:37]} 21. Kxh4 {[%clk 0:02:28]}  Bc6 {[%clk 0:02:37]} 22. f4 {[%clk 0:02:26]}  Be4 {[%clk 0:02:29]} 23. f5 {[%clk 0:02:16]}  Bc2 {[%clk 0:02:27]} 24. Rf3 {[%clk 0:02:12]}  Rd8 {[%clk 0:02:15]} 25. Kg3 {[%clk 0:01:50]}  Kc6 {[%clk 0:01:57]} 26. Re1 {[%clk 0:01:47]}  b5 {[%clk 0:01:49]} 27. e6 {[%clk 0:01:42]}  Bd6+ {[%clk 0:01:39]} 28. Kf2 {[%clk 0:01:36]}  fxe6 {[%clk 0:01:40]} 29. fxe6 {[%clk 0:01:35]}  axb3 {[%clk 0:01:36]} 30. axb3 {[%clk 0:01:35]}  Ra8 {[%clk 0:01:36]} 31. Bxg7 {[%clk 0:01:31]}  Ra2 {[%clk 0:01:31]} 32. Re2 {[%clk 0:01:30]}  Rga8 {[%clk 0:01:19]} 33. Bf6 {[%clk 0:01:16]}  Bd1 {[%clk 0:01:17]} 34. cxb5+ {[%clk 0:01:09]}  Kxb5 {[%clk 0:01:10]} 35. Re3 {[%clk 0:01:02]}  Bxe2 {[%clk 0:01:01]} 36. Rxe2 {[%clk 0:01:03]}  Kc6 {[%clk 0:01:00]} 37. Ng7 {[%clk 0:00:57]}  Rxe2+ {[%clk 0:00:52]} 38. Kxe2 {[%clk 0:00:58]}  Ra2+ {[%clk 0:00:28]} 39. Kd3 {[%clk 0:00:51]}  Rh2 {[%clk 0:00:28]} 40. h4 {[%clk 0:00:51]}  Rh3+ {[%clk 0:00:27]} 41. Kc2 {[%clk 0:00:51]}  Re3 {[%clk 0:00:22]} 42. g5 {[%clk 0:00:48]}  hxg5 {[%clk 0:00:23]} 43. hxg5 {[%clk 0:00:46]}  Kd5 {[%clk 0:00:23]} 44. Kd2 {[%clk 0:00:38]}  Re4 {[%clk 0:00:19]} 45. Kd3 {[%clk 0:00:36]}  Re1 {[%clk 0:00:16]} 46. Bc3 {[%clk 0:00:32]}  Rg1 {[%clk 0:00:14]} 47. Bf6 {[%clk 0:00:33]}  Rg3+ {[%clk 0:00:14]} 48. Kc2 {[%clk 0:00:32]}  Rg2+ {[%clk 0:00:12]} 49. Kd3 {[%clk 0:00:32]}  Rg3+ {[%clk 0:00:13]} 50. Kc2 {[%clk 0:00:32]}  Rg2+ {[%clk 0:00:13]} 51. Kd3 {[%clk 0:00:27]}  Rg3+ {[%clk 0:00:14]} 1/2-1/2

[Event "January 2 Early 2024"]
[Site "https://www.chess.com"]
[Date "2024.01.02"]
[Round "3"]
[White "Oganian, Miran"]
[Black "Borda Rodas, Anapaola S."]
[Result "1-0"]
[Board "67"]
[TimeControl "180+1"]
[WhiteFideId "4122488"]
[BlackFideId "152781"]
[WhiteElo "2744"]
[BlackElo "2385"]
[WhiteTeam "RUS"]
[BlackTeam "ARG"]
[WhiteClock "0:01:29"]
[BlackClock "0:01:06"]

1. e4 {[%clk 0:02:59]}  e5 {[%clk 0:03:00]} 2. Nf3 {[%clk 0:02:59]}  Nc6 {[%clk 0:03:00]} 3. Nc3 {[%clk 0:02:59]}  Nf6 {[%clk 0:03:00]} 4. d4 {[%clk 0:02:59]}  exd4 {[%clk 0:03:00]} 5. Nxd4 {[%clk 0:03:00]}  Bb4 {[%clk 0:02:57]} 6. Nxc6 {[%clk 0:03:00]}  bxc6 {[%clk 0:02:56]} 7. Bd3 {[%clk 0:03:01]}  d5 {[%clk 0:02:56]} 8. exd5 {[%clk 0:03:02]}  cxd5 {[%clk 0:02:56]} 9. O-O {[%clk 0:03:01]}  O-O {[%clk 0:02:56]} 10. h3 {[%clk 0:03:02]}  Rb8 {[%clk 0:02:50]} 11. Qf3 {[%clk 0:03:01]}  Rb6 {[%clk 0:02:42]} 12. Ne2 {[%clk 0:02:58]}  Bb7 {[%clk 0:02:39]} 13. Nd4 {[%clk 0:02:56]}  c5 {[%clk 0:02:34]} 14. Nf5 {[%clk 0:02:56]}  c4 {[%clk 0:02:27]} 15. c3 {[%clk 0:02:36]}  d4 {[%clk 0:02:13]} 16. Qf4 {[%clk 0:01:41]}  Nd5 {[%clk 0:01:37]} 17. Qxd4 {[%clk 0:01:34]}  Rg6 {[%clk 0:01:28]} 18. Be4 {[%clk 0:01:30]}  Ba5 {[%clk 0:01:17]} 19. Bxd5 {[%clk 0:01:30]}  Qxd5 {[%clk 0:01:06]} 20. Ne7+ {[%clk 0:01:29]} 1-0

[Event "January 2 Early 2024"]
[Site "https://www.chess.com"]
[Date "2024.01.02"]
[Round "3"]
[White "Buscar, Michael"]
[Black "Manolache, Marius"]
[Result "0-1"]
[Board "68"]
[TimeControl "180+1"]
[WhiteFideId "2603616"]
[BlackFideId "1201530"]
[WhiteElo "2347"]
[BlackElo "2696"]
[WhiteTeam "CAN"]
[BlackTeam "ROU"]
[WhiteClock "0:00:06"]
[BlackClock "0:00:14"]

1. d4 {[%clk 0:02:59]}  d6 {[%clk 0:02:59]} 2. e4 {[%clk 0:02:58]}  Nf6 {[%clk 0:03:00]} 3. Nc3 {[%clk 0:02:57]}  g6 {[%clk 0:03:00]} 4. Nf3 {[%clk 0:02:57]}  Bg7 {[%clk 0:03:01]} 5. Bc4 {[%clk 0:02:57]}  c6 {[%clk 0:03:00]} 6. O-O {[%clk 0:02:57]}  O-O {[%clk 0:02:57]} 7. Bg5 {[%clk 0:02:54]}  Nxe4 {[%clk 0:02:52]} 8. Nxe4 {[%clk 0:02:52]}  d5 {[%clk 0:02:52]} 9. Bd3 {[%clk 0:02:49]}  dxe4 {[%clk 0:02:52]} 10. Bxe4 {[%clk 0:02:50]}  Nd7 {[%clk 0:02:51]} 11. c3 {[%clk 0:02:41]}  Nf6 {[%clk 0:02:48]} 12. Bc2 {[%clk 0:02:38]}  Bg4 {[%clk 0:02:44]} 13. h3 {[%clk 0:02:36]}  Bxf3 {[%clk 0:02:44]} 14. Qxf3 {[%clk 0:02:35]}  Qd5 {[%clk 0:02:44]} 15. Qxd5 {[%clk 0:02:31]}  Nxd5 {[%clk 0:02:39]} 16. Rfe1 {[%clk 0:02:29]}  Rfe8 {[%clk 0:02:38]} 17. Bb3 {[%clk 0:02:22]}  e6 {[%clk 0:02:33]} 18. Re2 {[%clk 0:02:00]}  h6 {[%clk 0:02:31]} 19. Bd2 {[%clk 0:01:59]}  Rad8 {[%clk 0:02:28]} 20. Rae1 {[%clk 0:01:59]}  Rd7 {[%clk 0:02:18]} 21. Bc1 {[%clk 0:01:53]}  Red8 {[%clk 0:02:16]} 22. Bc2 {[%clk 0:01:48]}  a5 {[%clk 0:02:02]} 23. f4 {[%clk 0:01:45]}  b5 {[%clk 0:01:58]} 24. a3 {[%clk 0:01:44]}  b4 {[%clk 0:01:56]} 25. axb4 {[%clk 0:01:44]}  axb4 {[%clk 0:01:56]} 26. Bd2 {[%clk 0:01:41]}  bxc3 {[%clk 0:01:54]} 27. bxc3 {[%clk 0:01:41]}  Rb7 {[%clk 0:01:49]} 28. Be4 {[%clk 0:01:36]}  Rb3 {[%clk 0:01:45]} 29. Rb1 {[%clk 0:01:23]}  Rxb1+ {[%clk 0:01:38]} 30. Bxb1 {[%clk 0:01:22]}  Rb8 {[%clk 0:01:38]} 31. Be4 {[%clk 0:01:19]}  Rb3 {[%clk 0:01:36]} 32. Bxd5 {[%clk 0:01:20]}  cxd5 {[%clk 0:01:35]} 33. Kf2 {[%clk 0:01:19]}  Bf8 {[%clk 0:01:18]} 34. Ke3 {[%clk 0:01:17]}  Bd6 {[%clk 0:01:13]} 35. Kd3 {[%clk 0:01:17]}  Rb2 {[%clk 0:01:12]} 36. Re1 {[%clk 0:01:12]}  h5 {[%clk 0:01:07]} 37. g4 {[%clk 0:01:07]}  hxg4 {[%clk 0:01:03]} 38. hxg4 {[%clk 0:01:08]}  Kg7 {[%clk 0:01:02]} 39. Rf1 {[%clk 0:01:06]}  Kf6 {[%clk 0:01:02]} 40. Ke3 {[%clk 0:00:58]}  Ra2 {[%clk 0:01:01]} 41. Kd3 {[%clk 0:00:58]}  Ra8 {[%clk 0:00:59]} 42. Rh1 {[%clk 0:00:56]}  Ra2 {[%clk 0:00:51]} 43. Rf1 {[%clk 0:00:47]}  Rb2 {[%clk 0:00:49]} 44. Rh1 {[%clk 0:00:44]}  Rb8 {[%clk 0:00:49]} 45. Ke3 {[%clk 0:00:42]}  g5 {[%clk 0:00:45]} 46. fxg5+ {[%clk 0:00:38]}  Kxg5 {[%clk 0:00:44]} 47. Kf3+ {[%clk 0:00:36]}  Kg6 {[%clk 0:00:44]} 48. Rh6+ {[%clk 0:00:33]}  Kg7 {[%clk 0:00:44]} 49. Rh1 {[%clk 0:00:33]}  Rb2 {[%clk 0:00:43]} 50. Rd1 {[%clk 0:00:30]}  Kg6 {[%clk 0:00:40]} 51. Bf4 {[%clk 0:00:18]}  Bxf4 {[%clk 0:00:36]} 52. Kxf4 {[%clk 0:00:18]}  Re2 {[%clk 0:00:36]} 53. Rd3 {[%clk 0:00:18]}  Re4+ {[%clk 0:00:36]} 54. Kf3 {[%clk 0:00:16]}  Kg5 {[%clk 0:00:36]} 55. c4 {[%clk 0:00:16]}  Rf4+ {[%clk 0:00:36]} 56. Ke3 {[%clk 0:00:15]}  Kxg4 {[%clk 0:00:28]} 57. c5 {[%clk 0:00:16]}  Rf1 {[%clk 0:00:20]} 58. Rc3 {[%clk 0:00:16]}  Rh1 {[%clk 0:00:19]} 59. c6 {[%clk 0:00:15]}  Rh3+ {[%clk 0:00:19]} 60. Kd2 {[%clk 0:00:14]}  Rh8 {[%clk 0:00:19]} 61. c7 {[%clk 0:00:14]}  Rc8 {[%clk 0:00:20]} 62. Rc6 {[%clk 0:00:13]}  Kf4 {[%clk 0:00:20]} 63. Kd3 {[%clk 0:00:13]}  Kf3 {[%clk 0:00:20]} 64. Rc1 {[%clk 0:00:12]}  f5 {[%clk 0:00:18]} 65. Rc6 {[%clk 0:00:11]}  f4 {[%clk 0:00:18]} 66. Rc2 {[%clk 0:00:09]}  Kg3 {[%clk 0:00:18]} 67. Ke2 {[%clk 0:00:09]}  Kg2 {[%clk 0:00:18]} 68. Ke1+ {[%clk 0:00:08]}  Kf3 {[%clk 0:00:17]} 69. Kf1 {[%clk 0:00:09]}  Ke3 {[%clk 0:00:17]} 70. Re2+ {[%clk 0:00:05]}  Kxd4 {[%clk 0:00:16]} 71. Rxe6 {[%clk 0:00:05]}  Rxc7 {[%clk 0:00:17]} 72. Rf6 {[%clk 0:00:06]}  Ke3 {[%clk 0:00:15]} 73. Ke1 {[%clk 0:00:06]}  Rc1# {[%clk 0:00:14]} 0-1

[Event "January 2 Early 2024"]
[Site "https://www.chess.com"]
[Date "2024.01.02"]
[Round "3"]
[White "Iturrizaga Bonelli, Eduardo"]
[Black "Ladan, Nicholas"]
[Result "1-0"]
[Board "70"]
[TimeControl "180+1"]
[WhiteFideId "3901211"]
[BlackFideId "30918855"]
[WhiteElo "3015"]
[BlackElo "2494"]
[WhiteTeam "ESP"]
[BlackTeam "USA"]
[WhiteClock "0:00:36"]
[BlackClock "0:00:02"]

1. c4 {[%clk 0:03:00]}  e5 {[%clk 0:02:59]} 2. g3 {[%clk 0:03:01]}  Nc6 {[%clk 0:03:00]} 3. Bg2 {[%clk 0:03:01]}  Bc5 {[%clk 0:03:00]} 4. Nc3 {[%clk 0:03:01]}  d6 {[%clk 0:03:01]} 5. Nf3 {[%clk 0:03:02]}  a6 {[%clk 0:03:01]} 6. e3 {[%clk 0:03:02]}  Nge7 {[%clk 0:03:02]} 7. O-O {[%clk 0:03:00]}  O-O {[%clk 0:03:02]} 8. d4 {[%clk 0:03:00]}  Ba7 {[%clk 0:03:02]} 9. dxe5 {[%clk 0:02:59]}  dxe5 {[%clk 0:03:01]} 10. b3 {[%clk 0:02:59]}  f6 {[%clk 0:02:58]} 11. Ba3 {[%clk 0:02:58]}  Be6 {[%clk 0:02:56]} 12. Nd2 {[%clk 0:02:43]}  Qd3 {[%clk 0:02:33]} 13. Nd5 {[%clk 0:02:27]}  Nxd5 {[%clk 0:02:22]} 14. cxd5 {[%clk 0:02:26]}  Bxd5 {[%clk 0:02:22]} 15. Bxd5+ {[%clk 0:02:24]}  Qxd5 {[%clk 0:02:23]} 16. Bxf8 {[%clk 0:02:24]}  Rxf8 {[%clk 0:02:24]} 17. Nc4 {[%clk 0:02:20]}  Qe6 {[%clk 0:02:24]} 18. Rc1 {[%clk 0:02:10]}  e4 {[%clk 0:02:21]} 19. Qe2 {[%clk 0:02:06]}  f5 {[%clk 0:02:12]} 20. Rfd1 {[%clk 0:01:57]}  Rf6 {[%clk 0:01:51]} 21. Qd2 {[%clk 0:01:16]}  b5 {[%clk 0:00:49]} 22. Nb2 {[%clk 0:01:00]}  Ne5 {[%clk 0:00:38]} 23. Qd8+ {[%clk 0:00:59]}  Rf8 {[%clk 0:00:38]} 24. Qd5 {[%clk 0:00:56]}  Nf3+ {[%clk 0:00:36]} 25. Kg2 {[%clk 0:00:53]}  Qxd5 {[%clk 0:00:33]} 26. Rxd5 {[%clk 0:00:54]}  Bb6 {[%clk 0:00:33]} 27. a4 {[%clk 0:00:50]}  Rf6 {[%clk 0:00:30]} 28. axb5 {[%clk 0:00:45]}  axb5 {[%clk 0:00:31]} 29. Rxb5 {[%clk 0:00:44]}  Rh6 {[%clk 0:00:30]} 30. h3 {[%clk 0:00:44]}  Ng5 {[%clk 0:00:29]} 31. Rxf5 {[%clk 0:00:43]}  Nf3 {[%clk 0:00:16]} 32. Nc4 {[%clk 0:00:43]}  Rc6 {[%clk 0:00:14]} 33. Rd1 {[%clk 0:00:41]}  g6 {[%clk 0:00:14]} 34. Rd8+ {[%clk 0:00:37]}  Kg7 {[%clk 0:00:14]} 35. Rd7+ {[%clk 0:00:38]}  Kh6 {[%clk 0:00:15]} 36. Rff7 {[%clk 0:00:38]}  Ng5 {[%clk 0:00:13]} 37. Rg7 {[%clk 0:00:36]}  Rc5 {[%clk 0:00:02]} 38. h4 {[%clk 0:00:36]} 1-0

[Event "January 2 Early 2024"]
[Site "https://www.chess.com"]
[Date "2024.01.02"]
[Round "3"]
[White "Galchenko, Matvey"]
[Black "Pourkashiyan, Atousa"]
[Result "1-0"]
[Board "78"]
[TimeControl "180+1"]
[WhiteFideId "24175480"]
[BlackFideId "12502014"]
[WhiteElo "2903"]
[BlackElo "2477"]
[WhiteTeam "FID"]
[BlackTeam "USA"]
[WhiteClock "0:00:55"]
[BlackClock "0:00:19"]

1. e4 {[%clk 0:03:00]}  c5 {[%clk 0:02:51]} 2. c3 {[%clk 0:02:59]}  Nf6 {[%clk 0:02:49]} 3. e5 {[%clk 0:02:59]}  Nd5 {[%clk 0:02:49]} 4. Nf3 {[%clk 0:03:00]}  e6 {[%clk 0:02:49]} 5. Bc4 {[%clk 0:02:59]}  d6 {[%clk 0:02:50]} 6. d4 {[%clk 0:02:59]}  cxd4 {[%clk 0:02:50]} 7. cxd4 {[%clk 0:02:59]}  Nc6 {[%clk 0:02:50]} 8. O-O {[%clk 0:02:56]}  Be7 {[%clk 0:02:49]} 9. Bd2 {[%clk 0:02:53]}  O-O {[%clk 0:02:50]} 10. Nc3 {[%clk 0:02:53]}  Nxc3 {[%clk 0:02:50]} 11. Bxc3 {[%clk 0:02:53]}  dxe5 {[%clk 0:02:50]} 12. dxe5 {[%clk 0:02:54]}  Qxd1 {[%clk 0:02:50]} 13. Rfxd1 {[%clk 0:02:55]}  a6 {[%clk 0:02:51]} 14. Rac1 {[%clk 0:02:34]}  Rd8 {[%clk 0:02:41]} 15. Nd4 {[%clk 0:01:56]}  Nxe5 {[%clk 0:02:16]} 16. Bb3 {[%clk 0:01:55]}  Ng6 {[%clk 0:02:04]} 17. Ba5 {[%clk 0:01:54]}  Rf8 {[%clk 0:02:01]} 18. Bb6 {[%clk 0:01:45]}  e5 {[%clk 0:01:58]} 19. Nf3 {[%clk 0:01:36]}  Bg4 {[%clk 0:01:58]} 20. h3 {[%clk 0:01:26]}  Bxf3 {[%clk 0:01:58]} 21. gxf3 {[%clk 0:01:27]}  Rac8 {[%clk 0:01:55]} 22. Rxc8 {[%clk 0:01:21]}  Rxc8 {[%clk 0:01:55]} 23. Rd7 {[%clk 0:01:21]}  Kf8 {[%clk 0:01:39]} 24. Rxb7 {[%clk 0:01:20]}  Nh4 {[%clk 0:01:34]} 25. Bd5 {[%clk 0:01:15]}  g5 {[%clk 0:01:31]} 26. Kf1 {[%clk 0:01:09]}  Ng6 {[%clk 0:01:28]} 27. Be3 {[%clk 0:01:03]}  Nf4 {[%clk 0:01:26]} 28. Be4 {[%clk 0:01:03]}  Nxh3 {[%clk 0:01:22]} 29. Bf5 {[%clk 0:01:02]}  Rc4 {[%clk 0:01:07]} 30. Bxh3 {[%clk 0:00:57]}  h5 {[%clk 0:01:07]} 31. Bf5 {[%clk 0:00:55]}  g4 {[%clk 0:01:07]} 32. fxg4 {[%clk 0:00:55]}  hxg4 {[%clk 0:01:06]} 33. Bd3 {[%clk 0:00:56]}  Rc6 {[%clk 0:01:03]} 34. Rb6 {[%clk 0:00:54]}  Rxb6 {[%clk 0:01:02]} 35. Bxb6 {[%clk 0:00:55]}  Kg7 {[%clk 0:00:26]} 36. Bxa6 {[%clk 0:00:54]}  f5 {[%clk 0:00:27]} 37. Bc8 {[%clk 0:00:54]}  Kf6 {[%clk 0:00:19]} 38. a4 {[%clk 0:00:55]} 1-0